fUST/lending_fUST_20250917
["ID","MTS","AMOUNT","RATE_DAILY","PERIOD"]
[385823292,1758057054984,-480.0,0.00022739,3]
[385823294,1758057054993,-480.0,0.00022739,3]
[385823296,1758057055002,-480.0,0.00022739,3]
[385823298,1758057055011,-420.06,0.00022739,3]
[385823300,1758057055021,-489.86967818,0.00022739,3]
[385823302,1758057055030,-480.0,0.00022739,3]
[385823304,1758057055040,-480.0,0.00022739,3]
[385823306,1758057055049,-480.0,0.00022739,3]
[385823308,1758057055058,-480.0,0.00022739,3]
[385823310,1758057055067,-480.0,0.00022739,3]
[385823312,1758057055077,-480.0,0.00022739,3]
[385823314,1758057055086,-480.0,0.00022739,3]
[385823316,1758057055095,-480.0,0.00022739,3]
[385823318,1758057055105,-480.0,0.00022739,3]
[385823320,1758057055114,-396.5478196,0.00022739,3]
[385823323,1758057055126,-83.4521804,0.00022739,3]
[385823325,1758057055135,-480.0,0.00022739,3]
[385823326,1758057055144,-480.0,0.00022739,3]
[385823328,1758057055153,-592.46,0.00022739,3]
[385823330,1758057055164,-659.0,0.00022739,3]
[385823332,1758057055173,-480.0,0.00022739,3]
[385823334,1758057055182,-480.0,0.00022739,3]
[385823336,1758057055191,-480.0,0.00022739,3]
[385823338,1758057055200,-779.59,0.00022739,3]
[385823340,1758057055209,-488.28847588,0.00022739,3]
[385823342,1758057055219,-480.0,0.00022739,3]
[385823344,1758057055228,-531.37109762,0.00022739,3]
[385823346,1758057055239,-38.14890238,0.00022739,3]
[385823349,1758057055251,-490.33,0.00022739,3]
[385823351,1758057055261,-371.40765222,0.00022739,3]
[385823353,1758057055273,-108.59234778,0.00022739,3]
[385823355,1758057055283,-616.13237253,0.00022739,3]
[385823357,1758057055293,-480.0,0.00022739,3]
[385823359,1758057055302,-1034.37,0.00022739,3]
[385823361,1758057055312,-480.0,0.00022739,3]
[385823363,1758057055322,-276.66420438,0.00022739,3]
[385823397,1758057055633,-271.35708111,0.00021917,2]
[385823401,1758057055663,-208.64291889,0.00021917,2]
[385823403,1758057055677,-480.0,0.00021917,2]
[385823406,1758057055692,-480.0,0.00022465,3]
[385823408,1758057055707,-203.33579562,0.00022739,3]
[385823411,1758057055722,-480.0,0.00022739,3]
[385823414,1758057055737,-480.0,0.00022739,3]
[385823416,1758057055751,-480.0,0.00022739,3]
[385823419,1758057055766,-480.0,0.00022739,3]
[385823421,1758057055781,-480.0,0.00022739,3]
[385823424,1758057055795,-480.0,0.00022739,3]
[385823426,1758057055810,-480.0,0.00022739,3]
[385823429,1758057055823,-480.0,0.00022739,3]
[385823431,1758057055838,-480.0,0.00022739,3]
[385823434,1758057055852,-480.0,0.00022739,3]
[385823436,1758057055867,-480.0,0.00022739,3]
[385823439,1758057055880,-480.0,0.00022739,3]
[385823441,1758057055890,-480.0,0.00022739,3]
[385823443,1758057055902,-480.0,0.00022739,3]
[385823445,1758057055912,-480.0,0.00022739,3]
[385823447,1758057055922,-480.0,0.00022739,3]
[385823449,1758057055931,-480.0,0.00022739,3]
[385823451,1758057055941,-480.0,0.00022739,3]
[385823453,1758057055950,-480.0,0.00022739,3]
[385823455,1758057055959,-480.0,0.00022739,3]
[385823457,1758057055969,-317.02128549,0.00022739,3]
[385823502,1758057056395,-160.0,0.00021916,2]
[385823504,1758057056405,-564.96,0.00021917,2]
[385823506,1758057056414,-79.14715408,0.00021917,2]
[385823514,1758057056479,-265.8792111,0.00021505,2]
[385823516,1758057056488,-176.86636539,0.00021917,2]
[385828222,1758057105577,1029.91583721,0.000199,2]
[385828231,1758057105666,1029.91583703,0.00021149,2]
[385830430,1758057288332,926.92425353,0.000199,2]
[385830431,1758057288424,771.46515785,0.00021149,2]
[385830432,1758057288448,155.45909547,0.00021149,2]
[385830433,1758057435387,199.66219349,0.00030369,50]
[385830434,1758057448758,287.29893747,0.00027411,30]
[385830435,1758057478982,897.04612167,0.000199,2]
[385830436,1758057479079,897.04612148,0.00021149,2]
[385830440,1758057612155,353.92987277,0.0002087,2]
[385830442,1758057665150,1122.46890063,0.000199,2]
[385830443,1758057665267,1122.46890039,0.00021149,2]
[385830445,1758057838637,323.3527731,0.00020511,2]
[385830446,1758057856599,377.0959632,0.00027443,30]
[385830447,1758057861311,1047.63764048,0.000199,2]
[385830448,1758057861401,1047.63764036,0.00021149,2]
[385830463,1758058055951,965.01826537,0.000199,2]
[385830464,1758058056052,965.01826535,0.00021149,2]
[385830469,1758058127217,283.7214947,0.00020514,2]
[385830478,1758058202598,150.0,0.00027411,30]
[385830482,1758058226496,211.7875157,0.00020511,2]
[385830508,1758058231884,-300.0,0.00021298,2]
[385830509,1758058231893,-300.0,0.00021298,2]
[385830510,1758058231901,-300.0,0.00021298,2]
[385830511,1758058231910,-1200.0,0.00021299,2]
[385830512,1758058231921,-1200.0,0.00021299,2]
[385830513,1758058231930,-10000.01,0.000213,2]
[385830514,1758058231939,-500.0,0.000213,2]
[385830515,1758058231948,-12637.8951115,0.000215,2]
[385830516,1758058231957,-2040.6392295,0.00021514,2]
[385830517,1758058231972,-12247.36529223,0.00021514,2]
[385830519,1758058231981,-2123.07086656,0.00021514,7]
[385830520,1758058231990,-169.6502318,0.00021514,2]
[385830522,1758058231999,-500.0,0.00021514,2]
[385830523,1758058232007,-500.0,0.00021514,2]
[385830525,1758058232017,-500.0,0.00021514,2]
[385830527,1758058232026,-500.0,0.00021514,2]
[385830529,1758058232035,-500.0,0.00021514,2]
[385830531,1758058232044,-500.0,0.00021514,2]
[385830534,1758058232053,-500.0,0.00021514,2]
[385830537,1758058232062,-302.12789828,0.00021514,2]
[385830539,1758058232071,-500.0,0.00021514,2]
[385830541,1758058232080,-500.0,0.00021514,2]
[385830543,1758058232089,-500.0,0.00021514,2]
[385830545,1758058232098,-500.0,0.00021514,2]
[385830547,1758058232108,-443.85087166,0.00021514,2]
[385830549,1758058232117,-500.0,0.00021514,2]
[385830551,1758058232126,-500.0,0.00021514,2]
[385830553,1758058232135,-603.38809248,0.00021514,2]
[385830555,1758058232144,-500.0,0.00021514,2]
[385830557,1758058232153,-500.0,0.00021514,2]
[385830559,1758058232163,-500.0,0.00021514,2]
[385830560,1758058232171,-500.0,0.00021514,2]
[385830563,1758058232181,-500.0,0.00021514,2]
[385830565,1758058232191,-500.0,0.00021514,2]
[385830566,1758058232200,-539.69537283,0.00021514,2]
[385830569,1758058232210,-500.0,0.00021514,2]
[385830570,1758058232219,-500.0,0.00021514,2]
[385830572,1758058232229,-500.0,0.00021514,2]
[385830574,1758058232238,-500.0,0.00021514,2]
[385830576,1758058232247,-500.0,0.00021514,2]
[385830578,1758058232256,-500.0,0.00021514,2]
[385830580,1758058232266,-500.0,0.00021514,2]
[385830582,1758058232275,-28414.83825654,0.00021515,2]
[385830584,1758058232287,-6500.76518774,0.00021515,2]
[385830586,1758058232299,-3128.04483884,0.00021515,2]
[385830685,1758058237784,-27661.09611587,0.00021515,2]
[385830687,1758058237793,-161.1183986,0.0002153,2]
[385830689,1758058237803,-252.0,0.0002163,2]
[385830691,1758058237812,-252.0,0.00021654,2]
[385830693,1758058237821,-161.1183986,0.00021674,2]
[385830695,1758058237830,-4662.52844783,0.00021741,2]
[385830697,1758058237839,-252.0,0.00021753,2]
[385830699,1758058237849,-5950.23748398,0.00021817,2]
[385830702,1758058237858,-161.1183986,0.00021817,2]
[385830705,1758058237868,-480.0,0.00021834,2]
[385830707,1758058237881,-252.0,0.0002184,2]
[385830709,1758058237890,-217.86301978,0.00021857,2]
[385830711,1758058237899,-233.29513139,0.00021857,2]
[385830713,1758058237908,-160.0,0.00021857,2]
[385830715,1758058237917,-160.0,0.00021857,2]
[385830717,1758058237927,-160.0,0.00021858,2]
[385830719,1758058237936,-847.61663983,0.00021858,2]
[385830721,1758058237945,-531.43424302,0.00021858,2]
[385830723,1758058237954,-160.0,0.00021858,2]
[385830725,1758058237963,-225.12,0.00021907,3]
[385830727,1758058237972,-675.38,0.00021907,3]
[385830729,1758058237981,-155.0,0.00021916,2]
[385830731,1758058237990,-500.0,0.00021916,2]
[385830733,1758058237999,-500.0,0.00021916,2]
[385830735,1758058238008,-260.21968934,0.00021916,2]
[385830737,1758058238018,-326.1696562,0.00021916,2]
[385830739,1758058238026,-500.0,0.00021916,2]
[385830741,1758058238035,-500.0,0.00021916,2]
[385830743,1758058238045,-500.0,0.00021916,2]
[385830745,1758058238054,-500.0,0.00021916,2]
[385830747,1758058238063,-500.0,0.00021916,2]
[385830749,1758058238072,-500.0,0.00021916,2]
[385830751,1758058238081,-500.0,0.00021916,2]
[385830753,1758058238090,-500.0,0.00021916,2]
[385830754,1758058238099,-330.12935453,0.00021916,2]
[385830756,1758058238108,-480.0,0.00021917,2]
[385830759,1758058238118,-480.0,0.00021917,2]
[385830760,1758058238127,-520.0,0.00021917,3]
[385830763,1758058238138,-489.17253832,0.00021917,2]
[385830765,1758058238147,-463.0504928,0.00021917,2]
[385830766,1758058238156,-480.0,0.00021917,2]
[385830768,1758058238166,-480.0,0.00021917,2]
[385830770,1758058238175,-480.0,0.00021917,2]
[385830772,1758058238185,-480.0,0.00021917,2]
[385830774,1758058238194,-480.0,0.00021917,2]
[385830776,1758058238203,-200.50730093,0.00021917,2]
[385830778,1758058238212,-480.0,0.00021917,2]
[385830780,1758058238221,-480.0,0.00021917,2]
[385830782,1758058238230,-480.0,0.00021917,2]
[385830784,1758058238239,-480.0,0.00021917,2]
[385830786,1758058238249,-507.81,0.00021917,2]
[385830788,1758058238259,-480.0,0.00021917,2]
[385830790,1758058238268,-480.0,0.00021917,2]
[385830792,1758058238277,-480.0,0.00021917,2]
[385830794,1758058238285,-480.0,0.00021917,2]
[385830796,1758058238295,-480.0,0.00021917,2]
[385830798,1758058238304,-480.0,0.00021917,2]
[385830800,1758058238313,-480.0,0.00021917,2]
[385830802,1758058238322,-480.0,0.00021917,2]
[385830804,1758058238331,-480.0,0.00021917,2]
[385830806,1758058238340,-480.0,0.00021917,2]
[385830808,1758058238350,-480.0,0.00021917,2]
[385830810,1758058238359,-480.0,0.00021917,2]
[385830812,1758058238368,-480.0,0.00021917,2]
[385830814,1758058238377,-480.0,0.00021917,2]
[385830816,1758058238386,-480.0,0.00021917,2]
[385830818,1758058238396,-480.0,0.00021917,2]
[385830820,1758058238405,-480.0,0.00021917,2]
[385830822,1758058238414,-280.08612925,0.00021917,2]
[385830824,1758058238424,-480.0,0.00021917,2]
[385830826,1758058238435,-480.0,0.00021917,2]
[385830828,1758058238446,-480.0,0.00021917,2]
[385830830,1758058238456,-480.0,0.00021917,2]
[385830832,1758058238465,-480.0,0.00021917,2]
[385830834,1758058238474,-575.21699335,0.00021917,2]
[385830836,1758058238483,-480.0,0.00021917,2]
[385830838,1758058238492,-480.0,0.00021917,2]
[385830840,1758058238502,-480.0,0.00021917,2]
[385830842,1758058238511,-480.0,0.00021917,2]
[385830844,1758058238520,-480.0,0.00021917,2]
[385830846,1758058238529,-480.0,0.00021917,2]
[385830848,1758058238538,-480.0,0.00021917,2]
[385830850,1758058238547,-480.0,0.00021917,2]
[385830852,1758058238556,-480.0,0.00021917,2]
[385830854,1758058238565,-480.0,0.00021917,2]
[385830856,1758058238574,-467.25021271,0.00021917,2]
[385830858,1758058238584,-480.0,0.00021917,2]
[385830860,1758058238593,-480.0,0.00021917,2]
[385830862,1758058238602,-420.41954453,0.00021917,2]
[385830864,1758058238612,-481.01164975,0.00021917,2]
[385830866,1758058238620,-480.0,0.00021917,2]
[385830868,1758058238629,-480.0,0.00021917,2]
[385830870,1758058238638,-480.0,0.00021917,2]
[385830872,1758058238648,-480.0,0.00021917,2]
[385830874,1758058238658,-480.0,0.00021917,2]
[385830876,1758058238667,-480.0,0.00021917,2]
[385830878,1758058238676,-480.0,0.00021917,2]
[385830880,1758058238685,-483.70801758,0.00021917,2]
[385830882,1758058238694,-480.0,0.00021917,2]
[385830884,1758058238703,-480.0,0.00021917,2]
[385830886,1758058238712,-480.0,0.00021917,2]
[385830887,1758058238721,-302.02312182,0.00021917,2]
[385830889,1758058238731,-480.0,0.00021917,2]
[385830891,1758058238740,-480.0,0.00021917,2]
[385830893,1758058238749,-480.0,0.00021917,2]
[385830895,1758058238758,-518.46,0.00021917,2]
[385830897,1758058238768,-480.0,0.00021917,2]
[385830899,1758058238777,-483.60710863,0.00021917,2]
[385830900,1758058238786,-480.0,0.00021917,2]
[385830903,1758058238796,-480.0,0.00021917,2]
[385830904,1758058238805,-289.39703927,0.00021917,2]
[385830906,1758058238814,-480.0,0.00021917,2]
[385830908,1758058238823,-480.0,0.00021917,2]
[385830910,1758058238832,-480.0,0.00021917,2]
[385830912,1758058238841,-480.0,0.00021917,2]
[385830914,1758058238850,-480.0,0.00021917,2]
[385830916,1758058238859,-480.0,0.00021917,2]
[385830918,1758058238869,-1325.44,0.00021917,2]
[385830920,1758058238882,-480.0,0.00021917,2]
[385830922,1758058238891,-480.0,0.00021917,2]
[385830924,1758058238900,-480.0,0.00021917,2]
[385830926,1758058238910,-505.72,0.00021917,2]
[385830928,1758058238920,-480.0,0.00021917,2]
[385830930,1758058238929,-480.0,0.00021917,2]
[385830932,1758058238939,-480.0,0.00021917,2]
[385830934,1758058238950,-592.23,0.00021917,2]
[385830936,1758058238960,-480.0,0.00021917,2]
[385830938,1758058238970,-480.0,0.00021917,2]
[385830940,1758058238979,-536.1,0.00021917,2]
[385830942,1758058238989,-480.0,0.00021917,2]
[385830944,1758058238998,-480.0,0.00021917,2]
[385830946,1758058239008,-480.0,0.00021917,2]
[385830948,1758058239017,-480.0,0.00021917,2]
[385830950,1758058239026,-480.0,0.00021917,2]
[385830952,1758058239035,-480.0,0.00021917,2]
[385830954,1758058239045,-1918.31,0.00021917,2]
[385830955,1758058239054,-480.0,0.00021917,2]
[385830957,1758058239064,-480.0,0.00021917,2]
[385830959,1758058239073,-259.07996162,0.00021917,2]
[385830961,1758058239082,-480.0,0.00021917,2]
[385830963,1758058239091,-480.0,0.00021917,2]
[385830965,1758058239100,-344.73025394,0.00021917,2]
[385830967,1758058239109,-480.0,0.00021917,2]
[385830969,1758058239118,-877.7,0.00021917,2]
[385830971,1758058239127,-480.0,0.00021917,2]
[385830973,1758058239136,-480.0,0.00021917,2]
[385830975,1758058239145,-487.04,0.00021917,2]
[385830977,1758058239154,-1035.57,0.00021917,2]
[385830979,1758058239164,-480.0,0.00021917,2]
[385830981,1758058239173,-480.0,0.00021917,2]
[385830983,1758058239183,-480.0,0.00021917,2]
[385830985,1758058239192,-652.36,0.00021917,2]
[385830987,1758058239201,-480.0,0.00021917,2]
[385831001,1758058239316,-480.0,0.00021917,2]
[385831004,1758058239326,-480.0,0.00021917,2]
[385831007,1758058239336,-571.64469768,0.00021917,2]
[385831010,1758058239345,-480.0,0.00021917,2]
[385831013,1758058239354,-480.0,0.00021917,2]
[385831015,1758058239363,-480.0,0.00021917,2]
[385831018,1758058239372,-480.0,0.00021917,2]
[385831021,1758058239382,-480.0,0.00021917,2]
[385831024,1758058239391,-246.32715195,0.00021917,2]
[385831027,1758058239401,-480.0,0.00021917,2]
[385831030,1758058239410,-480.0,0.00021917,2]
[385831033,1758058239418,-480.0,0.00021917,2]
[385831036,1758058239429,-480.0,0.00021917,2]
[385831040,1758058239438,-480.0,0.00021917,2]
[385831041,1758058239447,-480.0,0.00021917,2]
[385831044,1758058239457,-480.0,0.00021917,2]
[385831047,1758058239466,-480.0,0.00021917,2]
[385831050,1758058239475,-480.0,0.00021917,2]
[385831053,1758058239485,-480.0,0.00021917,2]
[385831057,1758058239494,-480.0,0.00021917,2]
[385831059,1758058239503,-480.0,0.00021917,2]
[385831062,1758058239513,-480.0,0.00021917,2]
[385831065,1758058239522,-594.79,0.00021917,2]
[385831069,1758058239531,-480.0,0.00021917,2]
[385831071,1758058239541,-480.0,0.00021917,2]
[385831074,1758058239550,-480.0,0.00021917,2]
[385831077,1758058239559,-480.0,0.00021917,2]
[385831080,1758058239568,-739.37,0.00021917,2]
[385831083,1758058239577,-480.0,0.00021917,2]
[385831086,1758058239587,-480.0,0.00021917,2]
[385831089,1758058239596,-480.0,0.00021917,2]
[385831092,1758058239605,-480.0,0.00021917,2]
[385831095,1758058239615,-480.0,0.00021917,2]
[385831098,1758058239624,-481.34495879,0.00021917,2]
[385831101,1758058239634,-480.0,0.00021917,2]
[385831104,1758058239643,-480.0,0.00021917,2]
[385831107,1758058239653,-480.0,0.00021917,2]
[385831110,1758058239662,-480.0,0.00021917,2]
[385831113,1758058239672,-480.0,0.00021917,2]
[385831116,1758058239681,-480.0,0.00021917,2]
[385831119,1758058239691,-757.44,0.00021917,2]
[385831122,1758058239701,-480.0,0.00021917,2]
[385831125,1758058239710,-480.0,0.00021917,2]
[385831128,1758058239719,-1146.66,0.00021917,2]
[385831131,1758058239729,-480.0,0.00021917,2]
[385831134,1758058239739,-480.0,0.00021917,2]
[385831137,1758058239748,-480.0,0.00021917,2]
[385831140,1758058239757,-480.0,0.00021917,2]
[385831143,1758058239766,-859.2,0.00021917,2]
[385831146,1758058239776,-480.0,0.00021917,2]
[385831149,1758058239785,-480.0,0.00021917,2]
[385831152,1758058239794,-480.0,0.00021917,2]
[385831155,1758058239804,-480.0,0.00021917,2]
[385831158,1758058239813,-480.0,0.00021917,2]
[385831160,1758058239822,-480.0,0.00021917,2]
[385831163,1758058239831,-480.0,0.00021917,2]
[385831166,1758058239840,-480.0,0.00021917,2]
[385831169,1758058239849,-480.0,0.00021917,2]
[385831172,1758058239859,-480.0,0.00021917,2]
[385831175,1758058239870,-588.82,0.00021917,2]
[385831178,1758058239882,-480.0,0.00021917,2]
[385831181,1758058239891,-2207.31,0.00021917,2]
[385831184,1758058239900,-480.0,0.00021917,2]
[385831187,1758058239909,-480.0,0.00021917,2]
[385831190,1758058239918,-480.0,0.00021917,2]
[385831193,1758058239927,-480.0,0.00021917,2]
[385831196,1758058239937,-575.92,0.00021917,2]
[385831199,1758058239946,-480.0,0.00021917,2]
[385831202,1758058239955,-480.0,0.00021917,2]
[385831205,1758058239965,-932.15,0.00021917,2]
[385831207,1758058239974,-480.0,0.00021917,2]
[385831210,1758058239983,-312.70430582,0.00021917,2]
[385831213,1758058239992,-480.0,0.00021917,2]
[385831216,1758058240001,-480.0,0.00021917,2]
[385831219,1758058240010,-480.0,0.00021917,2]
[385831222,1758058240019,-480.0,0.00021917,2]
[385831226,1758058240029,-368.30090608,0.00021917,2]
[385831229,1758058240038,-480.0,0.00021917,2]
[385831232,1758058240047,-480.0,0.00021917,2]
[385831236,1758058240057,-480.0,0.00021917,2]
[385831238,1758058240066,-553.62082227,0.00021917,2]
[385831241,1758058240075,-480.0,0.00021917,2]
[385831244,1758058240084,-480.0,0.00021917,2]
[385831247,1758058240093,-480.0,0.00021917,2]
[385831250,1758058240102,-480.0,0.00021917,2]
[385831253,1758058240110,-480.0,0.00021917,2]
[385831256,1758058240119,-480.0,0.00021917,2]
[385831259,1758058240128,-480.0,0.00021917,2]
[385831262,1758058240138,-480.0,0.00021917,2]
[385831265,1758058240147,-480.0,0.00021917,2]
[385831268,1758058240156,-480.0,0.00021917,2]
[385831271,1758058240165,-480.0,0.00021917,2]
[385831274,1758058240175,-480.0,0.00021917,2]
[385831277,1758058240184,-480.0,0.00021917,2]
[385831280,1758058240193,-480.0,0.00021917,2]
[385831283,1758058240202,-1129.29,0.00021917,2]
[385831285,1758058240211,-480.0,0.00021917,2]
[385831287,1758058240220,-480.0,0.00021917,2]
[385831289,1758058240229,-480.0,0.00021917,2]
[385831291,1758058240238,-480.0,0.00021917,2]
[385831293,1758058240247,-480.0,0.00021917,2]
[385831295,1758058240256,-1005.25,0.00021917,2]
[385831297,1758058240266,-877.89,0.00021917,2]
[385831299,1758058240275,-480.0,0.00021917,2]
[385831301,1758058240285,-4272.36,0.00021917,2]
[385831303,1758058240293,-568.82,0.00021917,2]
[385831305,1758058240302,-480.0,0.00021917,2]
[385831307,1758058240312,-480.0,0.00021917,2]
[385831309,1758058240321,-1790.96,0.00021917,2]
[385831311,1758058240330,-480.0,0.00021917,2]
[385831313,1758058240339,-480.0,0.00021917,2]
[385831315,1758058240348,-480.0,0.00021917,2]
[385831317,1758058240357,-480.0,0.00021917,2]
[385831319,1758058240366,-487.29767828,0.00021917,2]
[385831321,1758058240375,-480.0,0.00021917,2]
[385831323,1758058240384,-553.21,0.00021917,2]
[385831325,1758058240393,-480.0,0.00021917,2]
[385831327,1758058240402,-480.0,0.00021917,2]
[385831329,1758058240411,-2191.19,0.00021917,2]
[385831331,1758058240420,-480.0,0.00021917,2]
[385831332,1758058240430,-480.0,0.00021917,2]
[385831334,1758058240439,-480.0,0.00021917,2]
[385831336,1758058240448,-480.0,0.00021917,2]
[385831338,1758058240457,-480.0,0.00021917,2]
[385831340,1758058240466,-518.07796495,0.00021917,2]
[385831342,1758058240475,-480.0,0.00021917,2]
[385831344,1758058240484,-480.0,0.00021917,2]
[385831346,1758058240493,-480.0,0.00021917,2]
[385831348,1758058240502,-498.73699586,0.00021917,2]
[385831351,1758058240511,-480.0,0.00021917,2]
[385831352,1758058240520,-480.0,0.00021917,2]
[385831354,1758058240529,-480.0,0.00021917,2]
[385831356,1758058240539,-480.0,0.00021917,2]
[385831358,1758058240548,-480.0,0.00021917,2]
[385831360,1758058240557,-480.0,0.00021917,2]
[385831362,1758058240566,-480.0,0.00021917,2]
[385831364,1758058240575,-480.0,0.00021917,2]
[385831366,1758058240584,-480.0,0.00021917,2]
[385831368,1758058240593,-480.0,0.00021917,2]
[385831370,1758058240602,-480.0,0.00021917,2]
[385831372,1758058240611,-480.0,0.00021917,2]
[385831374,1758058240620,-480.0,0.00021917,2]
[385831376,1758058240629,-2445.62,0.00021917,2]
[385831378,1758058240638,-480.0,0.00021917,2]
[385831380,1758058240647,-480.0,0.00021917,2]
[385831382,1758058240656,-480.0,0.00021917,2]
[385831384,1758058240665,-673.7,0.00021917,2]
[385831386,1758058240674,-480.0,0.00021917,2]
[385831388,1758058240683,-480.0,0.00021917,2]
[385831390,1758058240693,-480.0,0.00021917,2]
[385831392,1758058240701,-480.0,0.00021917,2]
[385831394,1758058240710,-480.0,0.00021917,2]
[385831396,1758058240719,-480.0,0.00021917,2]
[385831398,1758058240728,-4198.35,0.00021917,2]
[385831400,1758058240737,-482.15742243,0.00021917,2]
[385831402,1758058240746,-480.0,0.00021917,2]
[385831404,1758058240755,-480.0,0.00021917,2]
[385831406,1758058240764,-480.0,0.00021917,2]
[385831408,1758058240773,-480.0,0.00021917,2]
[385831410,1758058240782,-480.0,0.00021917,2]
[385831412,1758058240791,-480.0,0.00021917,2]
[385831414,1758058240800,-480.0,0.00021917,2]
[385831416,1758058240809,-480.0,0.00021917,2]
[385831418,1758058240818,-480.0,0.00021917,2]
[385831420,1758058240827,-480.0,0.00021917,2]
[385831422,1758058240836,-683.31,0.00021917,2]
[385831424,1758058240846,-480.0,0.00021917,2]
[385831426,1758058240855,-480.0,0.00021917,2]
[385831428,1758058240864,-1125.17,0.00021917,2]
[385831430,1758058240875,-480.0,0.00021917,2]
[385831432,1758058240885,-716.81,0.00021917,2]
[385831434,1758058240894,-480.0,0.00021917,2]
[385831436,1758058240905,-480.0,0.00021917,2]
[385831438,1758058240915,-480.0,0.00021917,2]
[385831440,1758058240925,-480.0,0.00021917,2]
[385831442,1758058240934,-480.0,0.00021917,2]
[385831444,1758058240943,-1051.6,0.00021917,2]
[385831446,1758058240953,-2266.22,0.00021917,2]
[385831448,1758058240962,-480.0,0.00021917,2]
[385831450,1758058240971,-482.99127915,0.00021917,2]
[385831452,1758058240980,-480.0,0.00021917,2]
[385831454,1758058240989,-480.0,0.00021917,2]
[385831456,1758058240998,-190.75886297,0.00021917,2]
[385831457,1758058241007,-480.0,0.00021917,2]
[385831459,1758058241016,-480.0,0.00021917,2]
[385831462,1758058241025,-771.29,0.00021917,2]
[385831463,1758058241034,-921.43,0.00021917,2]
[385831465,1758058241043,-480.0,0.00021917,2]
[385831467,1758058241052,-480.0,0.00021917,2]
[385831469,1758058241062,-2736.43,0.00021917,2]
[385831471,1758058241071,-480.0,0.00021917,2]
[385831473,1758058241080,-480.0,0.00021917,2]
[385831475,1758058241090,-480.0,0.00021917,2]
[385831477,1758058241099,-480.0,0.00021917,2]
[385831479,1758058241108,-480.0,0.00021917,2]
[385831481,1758058241116,-857.9,0.00021917,2]
[385831483,1758058241126,-1435.48,0.00021917,2]
[385831485,1758058241135,-3193.25,0.00021917,2]
[385831487,1758058241144,-480.0,0.00021917,2]
[385831489,1758058241153,-480.0,0.00021917,2]
[385831491,1758058241162,-480.0,0.00021917,2]
[385831492,1758058241171,-480.0,0.00021917,2]
[385831493,1758058241180,-4124.67,0.00021917,2]
[385831494,1758058241189,-782.93,0.00021917,2]
[385831495,1758058241198,-480.0,0.00021917,2]
[385831496,1758058241206,-480.0,0.00021917,2]
[385831497,1758058241215,-480.0,0.00021917,2]
[385831498,1758058241224,-717.8,0.00021917,2]
[385831499,1758058241233,-480.0,0.00021917,2]
[385831500,1758058241242,-480.0,0.00021917,2]
[385831501,1758058241251,-480.0,0.00021917,2]
[385831502,1758058241260,-480.0,0.00021917,2]
[385831503,1758058241270,-480.0,0.00021917,2]
[385831504,1758058241279,-1000.0,0.00021917,2]